[Event "Hungarian U20 Junior-ch Men 2024"]
[Site "Budapest"]
[Date "2024.03.19"]
[Round "9.5"]
[White "Szikszai, Bertalan"]
[Black "Pasztor, Balazs"]
[Result "0-1"]
[ECO "A06"]
[WhiteElo "2312"]
[BlackElo "2406"]
[Annotator "TA"]
[PlyCount "96"]
[EventDate "2024.03.10"]
[EventType "tourn"]
[EventCountry "HUN"]
[SourceTitle "playchess.com"]
[Source "ChessBase"]
[SourceQuality "1"]
[TimeControl "40/5400+30:1800+30"]

{[%evp 27,96,-25,-23,-31,-26,-29,-23,-25,-24,-32,-14,-14,0,-40,0,-10,9,-10,0,0,0,0,0,-22,-12,-50,0,0,64,-87,-97,-51,14,0,0,0,0,2,8,7,254,265,218,109,205,108,109,96,120,0,75,68,68,69,83,84,81,62,77,88,51,-29943,-29961,-29976,-29977,-29974,-29974,-29992,-29993,-29997,-550]} 1. Nf3 {[%emt 0:00:52]} d5 {[%emt 0:01:44]} 2. b3 {[%emt 0:02:10]} Nf6 {[%emt 0:00:50]} 3. Bb2 {[%emt 0:00:09]} e6 {[%emt 0:00:07]} 4. g3 {[%emt 0:01:22]} c5 {[%emt 0:03:15]} 5. Bg2 {[%emt 0:00:29]} Be7 {[%emt 0:01:34]} 6. O-O {[%emt 0:00:16]} O-O {[%emt 0:01:45]} 7. c4 {[%emt 0:08:14]} d4 {[%emt 0:02:58]} 8. e3 {[%emt 0:16:21]} Nc6 {[%emt 0:00:15]} 9. exd4 {[%emt 0:00:46]} cxd4 {[%emt 0:00:36]} 10. Re1 {[%emt 0:03:21]} Rb8 {[%emt 0:01:59] A14: English Opening: 1...e6 with b3 by White.} 11. d3 {[%emt 0:07:00]} b6 $146 {[%emt 0:01:27]} ({Predecessor:} 11... Re8 12. a3 b5 13. Nbd2 a6 14. cxb5 axb5 15. Rc1 Bb7 16. b4 Bf8 17. Nb3 e5 18. Nfd2 {0-1 Sowinski,P (2041)-Sadzikowski,D (2527) POL-chT Ekstraliga 2021 (3.2)}) 12. a3 {[%emt 0:12:37]} a5 {[%emt 0:01:50]} 13. Nbd2 {[%emt 0:00:11]} Bb7 {[%emt 0:04:08]} 14. Qc2 {[%emt 0:03:19]} Re8 {[%emt 0:07:16]} 15. Re2 {[%emt 0:00:53]} Bc5 {[%emt 0:02:55]} 16. Rae1 {[%emt 0:03:17]} Qd6 {[%emt 0:03:10]} 17. Qc1 {[%emt 0:00:43]} h6 {[%emt 0:07:10]} 18. h3 {[%emt 0:05:03]} e5 {[%emt 0:07:27]} 19. Nh4 {[%emt 0:00:37]} g6 {[%emt 0:04:11]} 20. Qa1 {[%emt 0:12:36]} Kh7 {[%emt 0:01:54]} 21. Bc1 {[%emt 0:00:55]} Rbd8 {[%emt 0:04:00]} 22. Qa2 {[%emt 0:00:53]} Qc7 {[%emt 0:03:29]} 23. Ne4 {[%emt 0:06:02]} Nxe4 {[%emt 0:02:39]} 24. Bxe4 {[%emt 0:00:09]} Bf8 {[%emt 0:06:36]} 25. Bg2 {[%emt 0:00:16]} Qd7 {[%emt 0:02:28]} 26. Kh2 {[%emt 0:01:06]} f5 {[%emt 0:03:13]} (26... Re7 $15) 27. Qd2 $11 {[%emt 0:05:34]} Qf7 {[%emt 0:05:11] [#]} (27... g5 28. Nxf5 Ne7 (28... Qxf5 $2 29. Be4 $18) 29. Nxe7 Rxe7 30. Rf1 $16 (30. Rxe5 Rxe5 31. Rxe5 Bg7 $18)) (27... Re7 $11) 28. b4 $2 {[%emt 0:00:46]} (28. f4 $1 $14 {stays ahead.}) 28... axb4 $17 {[%emt 0:01:37]} 29. axb4 {[%emt 0:00:04]} Bg7 {[%emt 0:07:26]} (29... e4 $1 $15 30. dxe4 g5 31. exf5 (31. Nxf5 $2 d3 $19) 31... Rxe2 (31... gxh4 32. Re6 $16) (31... Bxb4 32. Qd3 $15) 32. Rxe2 d3 (32... gxh4 33. Re6 $14)) 30. Nf3 {[%emt 0:02:55]} e4 $1 {[%emt 0:04:59]} 31. dxe4 {[%emt 0:00:22]} fxe4 {[%emt 0:01:08]} 32. Rxe4 {[%emt 0:00:27]} Rxe4 {[%emt 0:00:07]} 33. Rxe4 {[%emt 0:00:03]} Qxc4 $2 {[%emt 0:01:14]} (33... Nxb4 $1 $11 34. Nh4 (34. Ne5 Qe6 $11) 34... Bxe4 (34... Qxc4 $2 35. Re7 $18) 35. Bxe4 Qxc4) 34. Rh4 $18 {[%emt 0:00:30]} Kg8 {[%emt 0:03:12]} 35. Rxh6 {[%emt 0:01:31]} ({Only move:} 35. Qe1 $1 $18 h5 36. b5) 35... Ne7 {[%emt 0:01:35]} (35... Rd6 $16 {was called for.}) 36. Rh4 {[%emt 0:00:41]} ({Better is} 36. Qe1 $1 $18 {[%cal Re1e7]} Qf7 (36... Bxh6 $2 37. Qxe7 Qxc1 38. Qxd8+ Bf8 39. Nxd4 $18) 37. Ng5) 36... Nf5 $16 {[%emt 0:02:24]} 37. Rg4 {[%emt 0:00:27]} Rc8 {[%emt 0:00:29]} 38. Ba3 {[%emt 0:05:10]} (38. Qg5 $1 $16 {[%cal Rg5g6]} Qf7 39. Bd2) 38... Bxf3 {[%emt 0:00:39]} (38... Qc2 $11 {remains equal.} 39. Qe1 (39. Rxg6 $2 Bxf3 40. Rxg7+ Nxg7 $19) 39... Ne3 40. Rxd4 (40. Rf4 $2 Qa2 $19) 40... Nxg2 (40... Bxd4 $2 41. Nxd4 Qc3 42. Qxc3 $18) 41. Qe6+ Kh8) 39. Bxf3 $16 {[%emt 0:00:06]} Qc2 $1 {[%emt 0:00:28]} 40. Qe1 $1 {[%emt 0:00:00]} Ne3 {[%emt 0:00:00] [#]} 41. Bd5+ $1 {[%emt 0:07:06]} Kh7 {[%emt 0:04:03]} (41... Nxd5 $2 {is the wrong capture.} 42. Qe6+ Kh8 43. Rh4+ $18 (43. Qxd5 $2 {too greedy.} Qxf2+ 44. Qg2 Qxg2+ 45. Kxg2 Rc3 $19) (43. Qxd5 $2 Qxf2+ 44. Qg2 Qxg2+ 45. Kxg2 d3 $19)) 42. Rh4+ {[%emt 0:00:24]} Bh6 {[%emt 0:00:06]} 43. Be4 {[%emt 0:17:22]} Qa2 {[%emt 0:04:13]} 44. Bg2 $2 {[%emt 0:07:51][%mdl 8192] [#]} (44. Bc1 $14 Rxc1 45. Qxc1 Qxf2+ 46. Kh1 Qxg3 47. Qg1 Qxg1+ (47... Qxh4 48. Qxg6+ Kh8 49. Qh7#) 48. Kxg1) 44... Rc2 $1 {[%emt 0:04:01]} 45. Bc1 {[%emt 0:01:04]} Rxf2 {[%emt 0:02:03]} 46. Rxh6+ {[%emt 0:00:46]} Kg7 {[%emt 0:00:19]} ({Not} 46... Kxh6 47. Bxe3+ dxe3 48. Qxe3+ Kh7 49. Qe4 $17) 47. Rxg6+ {[%emt 0:00:40]} Kxg6 {[%emt 0:00:08]} 48. Bxe3 {[%emt 0:00:15]} Rxg2+ {[%emt 0:00:06]} 0-1